[Event "*** SCC Grand Prix: Titled Tuesday Blitz"]
[Site "Chess.com"]
[Date "2020.08.25"]
[Round "5"]
[White "Alexander_Moskalenko"]
[Black "Parhamov"]
[Result "0-1"]
[WhiteElo "2774"]
[BlackElo "3015"]
[TimeControl "180+1"]
[EndTime "10:57:38 PDT"]
[Termination "Parhamov won by resignation"]

1. c4 {[%clk 0:03:00.9]} 1... e5 {[%clk 0:02:54]} 2. Nc3 {[%clk 0:02:59.5]} 2...
Bb4 {[%clk 0:02:50.8]} 3. Qc2 {[%clk 0:02:54.8]} 3... Nf6 {[%clk 0:02:47.9]} 4.
Nf3 {[%clk 0:02:53.3]} 4... Nc6 {[%clk 0:02:45.1]} 5. e3 {[%clk 0:02:50.9]} 5...
a5 {[%clk 0:02:37]} 6. Be2 {[%clk 0:02:46.9]} 6... O-O {[%clk 0:02:35.5]} 7. O-O
{[%clk 0:02:46.6]} 7... Re8 {[%clk 0:02:35.3]} 8. d3 {[%clk 0:02:32.6]} 8... d5
{[%clk 0:02:28.1]} 9. cxd5 {[%clk 0:02:33.5]} 9... Nxd5 {[%clk 0:02:29]} 10. a3
{[%clk 0:02:33.2]} 10... Bf8 {[%clk 0:02:28.9]} 11. Nxd5 {[%clk 0:02:29.8]}
11... Qxd5 {[%clk 0:02:28.6]} 12. Bd2 {[%clk 0:02:18.6]} 12... Bg4 {[%clk
0:02:16.9]} 13. h3 {[%clk 0:02:16]} 13... Bh5 {[%clk 0:02:14.2]} 14. Rac1 {[%clk
0:02:12]} 14... Rad8 {[%clk 0:02:13]} 15. Rfd1 {[%clk 0:02:01.8]} 15... Qb5
{[%clk 0:01:55.2]} 16. Bc3 {[%clk 0:01:57.9]} 16... Qb6 {[%clk 0:01:45.3]} 17.
Rb1 {[%clk 0:01:18]} 17... h6 {[%clk 0:01:37.9]} 18. b4 {[%clk 0:01:10]} 18...
axb4 {[%clk 0:01:36.5]} 19. axb4 {[%clk 0:01:10.9]} 19... f6 {[%clk 0:01:36.9]}
20. Nh4 {[%clk 0:00:51.8]} 20... Bf7 {[%clk 0:01:36.1]} 21. b5 {[%clk 0:00:36]}
21... Ne7 {[%clk 0:01:29.8]} 22. d4 {[%clk 0:00:36.5]} 22... Nd5 {[%clk
0:01:14.2]} 23. dxe5 {[%clk 0:00:36.6]} 23... Nxc3 {[%clk 0:01:14]} 24. Qxc3
{[%clk 0:00:36.5]} 24... Rxd1+ {[%clk 0:01:13.9]} 25. Rxd1 {[%clk 0:00:36]}
25... Rxe5 {[%clk 0:01:14.4]} 26. Nf3 {[%clk 0:00:29.4]} 26... Rc5 {[%clk
0:01:00.7]} 27. Qa1 {[%clk 0:00:29.4]} 27... c6 {[%clk 0:01:00.3]} 28. bxc6
{[%clk 0:00:27.1]} 28... bxc6 {[%clk 0:01:00]} 29. Rd7 {[%clk 0:00:12.4]} 29...
Ra5 {[%clk 0:00:54.5]} 30. Qc1 {[%clk 0:00:11.5]} 30... Qc5 {[%clk 0:00:42.3]}
31. Qxc5 {[%clk 0:00:10]} 31... Rxc5 {[%clk 0:00:43.2]} 32. Nd4 {[%clk
0:00:09.6]} 32... Rc1+ {[%clk 0:00:42.7]} 33. Kh2 {[%clk 0:00:09.8]} 33... c5
{[%clk 0:00:43.3]} 34. Nc6 {[%clk 0:00:05.8]} 34... Rc2 {[%clk 0:00:36.9]} 35.
Bf3 {[%clk 0:00:03.8]} 35... Rxf2 {[%clk 0:00:35.4]} 36. Rd8 {[%clk 0:00:04.3]}
36... Be6 {[%clk 0:00:32]} 37. Ne7+ {[%clk 0:00:01.5]} 37... Kf7 {[%clk
0:00:31.9]} 38. Nc6 {[%clk 0:00:02.2]} 38... g6 {[%clk 0:00:27.6]} 39. Ra8
{[%clk 0:00:01.9]} 39... Bd6+ {[%clk 0:00:27.6]} 40. Kg1 {[%clk 0:00:02.4]}
40... Ra2 {[%clk 0:00:27.7]} 41. Ra7+ {[%clk 0:00:03.3]} 41... Rxa7 {[%clk
0:00:27.1]} 42. Nxa7 {[%clk 0:00:04.2]} 42... c4 {[%clk 0:00:27.1]} 43. Nb5
{[%clk 0:00:04.7]} 43... Be5 {[%clk 0:00:25.9]} 0-1

[Event "*** SCC Grand Prix: Titled Tuesday Blitz"]
[Site "Chess.com"]
[Date "2020.08.25"]
[Round "5"]
[White "AungTZ"]
[Black "profofchess"]
[Result "0-1"]
[WhiteElo "2131"]
[BlackElo "2422"]
[TimeControl "180+1"]
[EndTime "10:57:38 PDT"]
[Termination "profofchess won by checkmate"]

1. e4 {[%clk 0:02:49]} 1... e6 {[%clk 0:03:00.2]} 2. d4 {[%clk 0:02:48.6]} 2...
d5 {[%clk 0:03:00]} 3. Nc3 {[%clk 0:02:49]} 3... Bb4 {[%clk 0:02:59.6]} 4. exd5
{[%clk 0:02:48.2]} 4... exd5 {[%clk 0:02:59.5]} 5. Bd3 {[%clk 0:02:48.6]} 5...
Nc6 {[%clk 0:02:59.4]} 6. Ne2 {[%clk 0:02:49.1]} 6... Nf6 {[%clk 0:02:58.5]} 7.
O-O {[%clk 0:02:49.1]} 7... O-O {[%clk 0:02:58.1]} 8. h3 {[%clk 0:02:48.9]} 8...
h6 {[%clk 0:02:21.7]} 9. Bf4 {[%clk 0:02:40.5]} 9... Ne7 {[%clk 0:02:17.4]} 10.
Ng3 {[%clk 0:02:36.3]} 10... Ng6 {[%clk 0:02:15.5]} 11. Be3 {[%clk 0:02:33.8]}
11... Be6 {[%clk 0:02:06.9]} 12. Re1 {[%clk 0:02:16.1]} 12... Re8 {[%clk
0:02:06.3]} 13. Nh5 {[%clk 0:02:00.8]} 13... Ne4 {[%clk 0:01:57.9]} 14. Bxe4
{[%clk 0:01:53.5]} 14... dxe4 {[%clk 0:01:58.8]} 15. d5 {[%clk 0:01:52.4]} 15...
Bxc3 {[%clk 0:01:51.9]} 16. dxe6 {[%clk 0:01:42.9]} 16... Bxe1 {[%clk
0:01:51.8]} 17. exf7+ {[%clk 0:01:42.4]} 17... Kxf7 {[%clk 0:01:52.7]} 18. Qxe1
{[%clk 0:01:40.2]} 18... Qd5 {[%clk 0:01:51.7]} 19. Ng3 {[%clk 0:01:38.4]} 19...
Rad8 {[%clk 0:01:50.1]} 20. Qe2 {[%clk 0:01:36.8]} 20... Kg8 {[%clk 0:01:44.4]}
21. Qg4 {[%clk 0:01:35.5]} 21... Kh7 {[%clk 0:01:43.7]} 22. c3 {[%clk 0:01:33]}
22... Qe6 {[%clk 0:01:21.5]} 23. Qe2 {[%clk 0:01:31.7]} 23... Rd7 {[%clk
0:01:06.2]} 24. Re1 {[%clk 0:01:29.9]} 24... Qxa2 {[%clk 0:00:58.3]} 25. Bd4
{[%clk 0:01:26.2]} 25... a5 {[%clk 0:00:35.5]} 26. Qg4 {[%clk 0:01:22.5]} 26...
Qe6 {[%clk 0:00:33.5]} 27. Qh5 {[%clk 0:01:17.9]} 27... Rd5 {[%clk 0:00:23]} 28.
Qe2 {[%clk 0:01:14.7]} 28... Nf4 {[%clk 0:00:20]} 29. Qc2 {[%clk 0:01:13.1]}
29... Qg6 {[%clk 0:00:13.2]} 30. Qb3 {[%clk 0:01:06.3]} 30... c6 {[%clk
0:00:12.2]} 31. Qxb7 {[%clk 0:01:05]} 31... Ne6 {[%clk 0:00:10.2]} 32. Be3
{[%clk 0:01:01.9]} 32... h5 {[%clk 0:00:09.9]} 33. Ne2 {[%clk 0:01:00.4]} 33...
h4 {[%clk 0:00:09.2]} 34. Qxc6 {[%clk 0:00:59.9]} 34... Qf5 {[%clk 0:00:07.6]}
35. Nd4 {[%clk 0:00:57.3]} 35... Nxd4 {[%clk 0:00:07.2]} 36. Bxd4 {[%clk
0:00:57.8]} 36... Rf8 {[%clk 0:00:07]} 37. Qb7 {[%clk 0:00:56.6]} 37... Rf7
{[%clk 0:00:04.7]} 38. Qb8 {[%clk 0:00:54.6]} 38... Rb5 {[%clk 0:00:04.7]} 39.
Qd8 {[%clk 0:00:51.3]} 39... Rxb2 {[%clk 0:00:04.3]} 40. Qxh4+ {[%clk 0:00:51]}
40... Kg8 {[%clk 0:00:04.6]} 41. Qd8+ {[%clk 0:00:50.8]} 41... Rf8 {[%clk
0:00:04.5]} 42. Qh4 {[%clk 0:00:50.9]} 42... a4 {[%clk 0:00:04.1]} 43. Rxe4
{[%clk 0:00:50.3]} 43... a3 {[%clk 0:00:03.5]} 44. Rg4 {[%clk 0:00:50.2]} 44...
Rf7 {[%clk 0:00:02.8]} 45. Qd8+ {[%clk 0:00:50.2]} 45... Kh7 {[%clk 0:00:02.6]}
46. Rh4+ {[%clk 0:00:50.4]} 46... Kg6 {[%clk 0:00:02.7]} 47. Qd6+ {[%clk
0:00:50.3]} 47... Rf6 {[%clk 0:00:02.7]} 48. Rg4+ {[%clk 0:00:50.4]} 48... Kf7
{[%clk 0:00:01.9]} 49. Bxf6 {[%clk 0:00:50.4]} 49... gxf6 {[%clk 0:00:02.8]} 50.
Qc7+ {[%clk 0:00:49.8]} 50... Ke6 {[%clk 0:00:03.3]} 51. Qb6+ {[%clk 0:00:49.8]}
51... Rxb6 {[%clk 0:00:02.8]} 52. Re4+ {[%clk 0:00:48.3]} 52... Qxe4 {[%clk
0:00:02.9]} 53. h4 {[%clk 0:00:47.2]} 53... Qb1+ {[%clk 0:00:03.8]} 54. Kh2
{[%clk 0:00:46.7]} 54... a2 {[%clk 0:00:04.7]} 55. h5 {[%clk 0:00:46.4]} 55...
a1=Q {[%clk 0:00:05.6]} 56. h6 {[%clk 0:00:47.1]} 56... Qh1+ {[%clk 0:00:06]}
57. Kg3 {[%clk 0:00:47.7]} 57... Qxh6 {[%clk 0:00:06.9]} 58. Kf3 {[%clk
0:00:47.7]} 58... Qg5 {[%clk 0:00:07.4]} 59. Ke4 {[%clk 0:00:47.8]} 59... Qf5+
{[%clk 0:00:07.8]} 60. Kd4 {[%clk 0:00:48.7]} 60... Qe5+ {[%clk 0:00:08.2]} 61.
Kd3 {[%clk 0:00:48.7]} 61... Qf1+ {[%clk 0:00:08.2]} 62. Kd2 {[%clk 0:00:48.3]}
62... Qee2# {[%clk 0:00:08.2]} 0-1

[Event "*** SCC Grand Prix: Titled Tuesday Blitz"]
[Site "Chess.com"]
[Date "2020.08.25"]
[Round "5"]
[White "Gloomy_Wanderer"]
[Black "David_Paravyan"]
[Result "0-1"]
[WhiteElo "2766"]
[BlackElo "2986"]
[TimeControl "180+1"]
[EndTime "10:57:39 PDT"]
[Termination "David_Paravyan won by resignation"]

1. d4 {[%clk 0:03:00.9]} 1... Nf6 {[%clk 0:02:58.4]} 2. Nf3 {[%clk 0:03:00]}
2... g6 {[%clk 0:02:58.7]} 3. c4 {[%clk 0:02:59.5]} 3... Bg7 {[%clk 0:02:58.4]}
4. g3 {[%clk 0:02:59.7]} 4... c6 {[%clk 0:02:58.4]} 5. Bg2 {[%clk 0:02:58.8]}
5... d5 {[%clk 0:02:59]} 6. Nbd2 {[%clk 0:02:58.6]} 6... O-O {[%clk 0:02:58.3]}
7. O-O {[%clk 0:02:58.3]} 7... Bf5 {[%clk 0:02:53.8]} 8. b3 {[%clk 0:02:57.3]}
8... Ne4 {[%clk 0:02:52.9]} 9. Bb2 {[%clk 0:02:56.7]} 9... Re8 {[%clk
0:02:46.7]} 10. h3 {[%clk 0:02:47.1]} 10... Nxd2 {[%clk 0:02:28.6]} 11. Nxd2
{[%clk 0:02:46.3]} 11... Na6 {[%clk 0:02:15.8]} 12. a3 {[%clk 0:02:20.7]} 12...
Rc8 {[%clk 0:02:13.8]} 13. b4 {[%clk 0:02:08.3]} 13... Qd7 {[%clk 0:01:43.9]}
14. Kh2 {[%clk 0:02:03.2]} 14... h5 {[%clk 0:01:32.1]} 15. Rc1 {[%clk
0:01:55.8]} 15... Nc7 {[%clk 0:01:15.1]} 16. Qb3 {[%clk 0:01:44.2]} 16... e5
{[%clk 0:01:04.2]} 17. cxd5 {[%clk 0:01:32]} 17... cxd5 {[%clk 0:00:52.2]} 18.
dxe5 {[%clk 0:01:31.3]} 18... Bxe5 {[%clk 0:00:50.6]} 19. Bxe5 {[%clk 0:01:31]}
19... Rxe5 {[%clk 0:00:51.5]} 20. e3 {[%clk 0:01:31.3]} 20... Ree8 {[%clk
0:00:48.5]} 21. Rfd1 {[%clk 0:01:17.7]} 21... Red8 {[%clk 0:00:48.2]} 22. Qb2
{[%clk 0:01:03.1]} 22... Qe7 {[%clk 0:00:31.7]} 23. Nb3 {[%clk 0:00:40.7]} 23...
Be4 {[%clk 0:00:28.6]} 24. Nd4 {[%clk 0:00:27.5]} 24... Bxg2 {[%clk 0:00:27.3]}
25. Kxg2 {[%clk 0:00:28.4]} 25... Qe4+ {[%clk 0:00:25]} 26. Kh2 {[%clk
0:00:26.3]} 26... a6 {[%clk 0:00:13.7]} 27. Qd2 {[%clk 0:00:24.3]} 27... Ne8
{[%clk 0:00:12.7]} 28. f3 {[%clk 0:00:23.5]} 28... Qe5 {[%clk 0:00:11.7]} 29.
Kg2 {[%clk 0:00:23.3]} 29... Nd6 {[%clk 0:00:11.5]} 30. Qd3 {[%clk 0:00:18.1]}
30... Rxc1 {[%clk 0:00:05.4]} 31. Rxc1 {[%clk 0:00:17.9]} 31... Re8 {[%clk
0:00:06.3]} 32. Rc3 {[%clk 0:00:17.5]} 32... Qf6 {[%clk 0:00:05.4]} 33. Ne2
{[%clk 0:00:14.9]} 33... Nf5 {[%clk 0:00:05.3]} 34. Qd2 {[%clk 0:00:13.7]} 34...
Qe5 {[%clk 0:00:05.1]} 35. Rd3 {[%clk 0:00:07.1]} 35... Nxe3+ {[%clk 0:00:04.7]}
36. Kf2 {[%clk 0:00:07.4]} 36... Nc4 {[%clk 0:00:05]} 37. Qd1 {[%clk 0:00:06.2]}
37... Nb2 {[%clk 0:00:04.9]} 0-1

[Event "*** SCC Grand Prix: Titled Tuesday Blitz"]
[Site "Chess.com"]
[Date "2020.08.25"]
[Round "5"]
[White "kngopal"]
[Black "IMAghasiyevKamal"]
[Result "0-1"]
[WhiteElo "2268"]
[BlackElo "2432"]
[TimeControl "180+1"]
[EndTime "10:57:42 PDT"]
[Termination "IMAghasiyevKamal won by resignation"]

1. e4 {[%clk 0:03:00.9]} 1... c5 {[%clk 0:02:58.1]} 2. c4 {[%clk 0:02:57.4]}
2... Nc6 {[%clk 0:02:57.6]} 3. Nc3 {[%clk 0:02:57]} 3... g6 {[%clk 0:02:56.7]}
4. g3 {[%clk 0:02:57.2]} 4... Bg7 {[%clk 0:02:57]} 5. Bg2 {[%clk 0:02:57.9]}
5... d6 {[%clk 0:02:56.9]} 6. Nge2 {[%clk 0:02:57.9]} 6... Nf6 {[%clk
0:02:40.8]} 7. O-O {[%clk 0:02:52.4]} 7... O-O {[%clk 0:02:40.4]} 8. d4 {[%clk
0:02:36.2]} 8... Bg4 {[%clk 0:02:33.9]} 9. f3 {[%clk 0:02:25.6]} 9... cxd4
{[%clk 0:02:32.5]} 10. Nxd4 {[%clk 0:02:19.8]} 10... Nxd4 {[%clk 0:02:28.9]} 11.
Qxd4 {[%clk 0:02:18.7]} 11... Be6 {[%clk 0:02:29.1]} 12. Qd3 {[%clk 0:02:15.6]}
12... Rc8 {[%clk 0:02:28.4]} 13. Nd5 {[%clk 0:02:12.1]} 13... Nd7 {[%clk
0:02:08.9]} 14. Qe2 {[%clk 0:01:54.2]} 14... Ne5 {[%clk 0:02:02.8]} 15. Bg5
{[%clk 0:01:47.7]} 15... f6 {[%clk 0:01:54.8]} 16. Be3 {[%clk 0:01:09.5]} 16...
Nxc4 {[%clk 0:01:53.4]} 17. Bf2 {[%clk 0:01:06.1]} 17... f5 {[%clk 0:01:20]} 18.
Rac1 {[%clk 0:01:03.6]} 18... fxe4 {[%clk 0:01:13.4]} 19. fxe4 {[%clk
0:00:57.3]} 19... Ne5 {[%clk 0:00:55.6]} 20. Rxc8 {[%clk 0:00:50.7]} 20... Bxc8
{[%clk 0:00:55.3]} 21. Bxa7 {[%clk 0:00:47.5]} 21... Bg4 {[%clk 0:00:51.4]} 22.
Qe3 {[%clk 0:00:42.1]} 22... Rxf1+ {[%clk 0:00:48.2]} 23. Kxf1 {[%clk 0:00:40]}
23... Qa5 {[%clk 0:00:42.9]} 24. Nxe7+ {[%clk 0:00:32.7]} 24... Kf7 {[%clk
0:00:40.1]} 25. Nd5 {[%clk 0:00:29.3]} 25... Qxa2 {[%clk 0:00:33]} 26. h3 {[%clk
0:00:19.8]} 26... Qa1+ {[%clk 0:00:25.5]} 27. Kf2 {[%clk 0:00:19.9]} 27... Be6
{[%clk 0:00:16.3]} 28. Bd4 {[%clk 0:00:16.4]} 28... Qd1 {[%clk 0:00:14.1]} 29.
Nf4 {[%clk 0:00:13.3]} 29... Ng4+ {[%clk 0:00:12.7]} 30. hxg4 {[%clk 0:00:11.5]}
30... Bxd4 {[%clk 0:00:12.9]} 31. Nxe6 {[%clk 0:00:09.4]} 31... Kxe6 {[%clk
0:00:12.3]} 32. Bf3 {[%clk 0:00:05.5]} 32... Qd2+ {[%clk 0:00:11.3]} 33. Be2
{[%clk 0:00:03]} 33... Qxe3+ {[%clk 0:00:10.8]} 0-1

[Event "*** SCC Grand Prix: Titled Tuesday Blitz"]
[Site "Chess.com"]
[Date "2020.08.25"]
[Round "5"]
[White "Gvetadze"]
[Black "Sacbutt"]
[Result "1-0"]
[WhiteElo "2403"]
[BlackElo "2192"]
[TimeControl "180+1"]
[EndTime "10:57:42 PDT"]
[Termination "Gvetadze won on time"]

1. Nf3 {[%clk 0:03:00.9]} 1... e6 {[%clk 0:02:56]} 2. g3 {[%clk 0:03:00.9]} 2...
d5 {[%clk 0:02:55.5]} 3. Bg2 {[%clk 0:03:01.8]} 3... Nf6 {[%clk 0:02:55.9]} 4.
O-O {[%clk 0:03:02.7]} 4... Be7 {[%clk 0:02:56.4]} 5. d3 {[%clk 0:03:03.6]} 5...
O-O {[%clk 0:02:56.7]} 6. Nbd2 {[%clk 0:03:04.5]} 6... c5 {[%clk 0:02:56]} 7. e4
{[%clk 0:03:05.4]} 7... Nc6 {[%clk 0:02:55.6]} 8. Re1 {[%clk 0:03:05.7]} 8...
dxe4 {[%clk 0:02:52.4]} 9. dxe4 {[%clk 0:03:05.5]} 9... Qc7 {[%clk 0:02:35.8]}
10. c3 {[%clk 0:03:04.3]} 10... b5 {[%clk 0:02:31.3]} 11. Qe2 {[%clk 0:03:03.9]}
11... b4 {[%clk 0:02:23.4]} 12. h4 {[%clk 0:03:02.7]} 12... a5 {[%clk
0:02:18.6]} 13. e5 {[%clk 0:03:02.8]} 13... Nd7 {[%clk 0:02:13.7]} 14. Qe4
{[%clk 0:02:57.2]} 14... Bb7 {[%clk 0:02:08.7]} 15. Qf4 {[%clk 0:02:42]} 15...
Nb6 {[%clk 0:01:48.2]} 16. Qg4 {[%clk 0:02:25.7]} 16... Kh8 {[%clk 0:01:36]} 17.
Ne4 {[%clk 0:02:13]} 17... Nxe5 {[%clk 0:01:11.5]} 18. Nxe5 {[%clk 0:02:11.2]}
18... Qxe5 {[%clk 0:01:08.7]} 19. Bg5 {[%clk 0:02:10.3]} 19... f5 {[%clk
0:00:53]} 20. Qh3 {[%clk 0:02:07.5]} 20... fxe4 {[%clk 0:00:47.3]} 21. Bxe7
{[%clk 0:02:06.8]} 21... Rf7 {[%clk 0:00:46.3]} 22. Bg5 {[%clk 0:02:06.2]} 22...
Raf8 {[%clk 0:00:44.8]} 23. Be3 {[%clk 0:02:06.4]} 23... bxc3 {[%clk 0:00:41.4]}
24. bxc3 {[%clk 0:02:05.9]} 24... Nd5 {[%clk 0:00:39.4]} 25. Bxc5 {[%clk
0:02:05.9]} 25... Nf4 {[%clk 0:00:31.7]} 26. gxf4 {[%clk 0:01:59.5]} 26... Qxc5
{[%clk 0:00:31.5]} 27. Qe3 {[%clk 0:01:50.3]} 27... Qf5 {[%clk 0:00:27.5]} 28.
Bxe4 {[%clk 0:01:49.6]} 28... Bxe4 {[%clk 0:00:26.9]} 29. Qxe4 {[%clk
0:01:49.8]} 29... Qg4+ {[%clk 0:00:25.2]} 30. Qg2 {[%clk 0:01:49.4]} 30... Qxh4
{[%clk 0:00:22.7]} 31. Re3 {[%clk 0:01:45.7]} 31... Rxf4 {[%clk 0:00:22.2]} 32.
Rg3 {[%clk 0:01:45.9]} 32... g6 {[%clk 0:00:20.1]} 33. Rf1 {[%clk 0:01:44.8]}
33... Qh5 {[%clk 0:00:17.9]} 34. Rg5 {[%clk 0:01:34.7]} 34... Qh4 {[%clk
0:00:16.3]} 35. Rg3 {[%clk 0:01:34.4]} 35... Qh5 {[%clk 0:00:16.3]} 36. Qc6
{[%clk 0:01:30.8]} 36... Rh4 {[%clk 0:00:13]} 37. Re1 {[%clk 0:01:20.8]} 37...
Qd5 {[%clk 0:00:10.9]} 38. Qxd5 {[%clk 0:01:19.3]} 38... exd5 {[%clk 0:00:11.8]}
39. Re5 {[%clk 0:01:17.8]} 39... Rhf4 {[%clk 0:00:12]} 40. Rg2 {[%clk
0:01:14.2]} 40... d4 {[%clk 0:00:12]} 41. cxd4 {[%clk 0:01:13.3]} 41... Rxd4
{[%clk 0:00:12.3]} 42. Rxa5 {[%clk 0:01:13.9]} 42... Rd1+ {[%clk 0:00:11.8]} 43.
Kh2 {[%clk 0:01:14.2]} 43... Rd2 {[%clk 0:00:12.7]} 44. f3 {[%clk 0:01:12.3]}
44... Rxg2+ {[%clk 0:00:11.4]} 45. Kxg2 {[%clk 0:01:13.2]} 45... Rc8 {[%clk
0:00:10.6]} 46. Ra7 {[%clk 0:01:13.2]} 46... Kg8 {[%clk 0:00:10.3]} 47. a4
{[%clk 0:01:12.8]} 47... Rc2+ {[%clk 0:00:09.5]} 48. Kg3 {[%clk 0:01:12.5]}
48... h5 {[%clk 0:00:09.8]} 49. a5 {[%clk 0:01:11.9]} 49... Ra2 {[%clk
0:00:09.8]} 50. a6 {[%clk 0:01:11.3]} 50... Kf8 {[%clk 0:00:10.3]} 51. Kh4
{[%clk 0:01:11.4]} 51... Kg8 {[%clk 0:00:10.2]} 52. Kg5 {[%clk 0:01:11.5]} 52...
Rg2+ {[%clk 0:00:10.7]} 53. Kf6 {[%clk 0:01:10.2]} 53... h4 {[%clk 0:00:11.1]}
54. Rg7+ {[%clk 0:01:00.5]} 54... Kf8 {[%clk 0:00:09.8]} 55. a7 {[%clk
0:00:59.2]} 55... Ra2 {[%clk 0:00:09.6]} 56. Rh7 {[%clk 0:00:59.3]} 56... Kg8
{[%clk 0:00:09.9]} 57. Rb7 {[%clk 0:00:56.8]} 57... h3 {[%clk 0:00:09.2]} 58.
Rb8+ {[%clk 0:00:57.1]} 58... Kh7 {[%clk 0:00:09.6]} 59. a8=Q {[%clk 0:00:57.2]}
59... Rxa8 {[%clk 0:00:08.7]} 60. Rxa8 {[%clk 0:00:57.7]} 1-0

[Event "*** SCC Grand Prix: Titled Tuesday Blitz"]
[Site "Chess.com"]
[Date "2020.08.25"]
[Round "5"]
[White "annacramling"]
[Black "witcher8"]
[Result "1-0"]
[WhiteElo "2138"]
[BlackElo "2412"]
[TimeControl "180+1"]
[EndTime "10:57:42 PDT"]
[Termination "annacramling won on time"]

1. d4 {[%clk 0:03:00.9]} 1... Nf6 {[%clk 0:02:58.1]} 2. c4 {[%clk 0:02:59.9]}
2... g6 {[%clk 0:02:57.9]} 3. Nc3 {[%clk 0:03:00.1]} 3... Bg7 {[%clk 0:02:58.8]}
4. e4 {[%clk 0:03:00.7]} 4... d6 {[%clk 0:02:59.3]} 5. h3 {[%clk 0:03:01.1]}
5... O-O {[%clk 0:02:56.6]} 6. Nf3 {[%clk 0:03:01.4]} 6... e5 {[%clk 0:02:54.1]}
7. d5 {[%clk 0:03:01]} 7... Nh5 {[%clk 0:02:13.8]} 8. g3 {[%clk 0:02:56.6]} 8...
Na6 {[%clk 0:02:00.9]} 9. g4 {[%clk 0:02:38.9]} 9... Nf4 {[%clk 0:01:40.2]} 10.
Be3 {[%clk 0:02:27.5]} 10... f5 {[%clk 0:01:37.4]} 11. gxf5 {[%clk 0:02:26.6]}
11... gxf5 {[%clk 0:01:35.5]} 12. Rg1 {[%clk 0:02:11.3]} 12... Kh8 {[%clk
0:01:29.2]} 13. Ng5 {[%clk 0:01:54.2]} 13... fxe4 {[%clk 0:01:04.4]} 14. Bxf4
{[%clk 0:00:54.5]} 14... exf4 {[%clk 0:01:03]} 15. Qh5 {[%clk 0:00:54.2]} 15...
Bf5 {[%clk 0:00:49.3]} 16. Nf7+ {[%clk 0:00:53.6]} 16... Rxf7 {[%clk 0:00:49.4]}
17. Qxf7 {[%clk 0:00:54.1]} 17... Qf8 {[%clk 0:00:50]} 18. Rxg7 {[%clk
0:00:48.4]} 18... Qxg7 {[%clk 0:00:43.1]} 19. Qxf5 {[%clk 0:00:48.7]} 19... Nc5
{[%clk 0:00:43]} 20. O-O-O {[%clk 0:00:38.1]} 20... Rf8 {[%clk 0:00:42.8]} 21.
Qh5 {[%clk 0:00:33.8]} 21... e3 {[%clk 0:00:36]} 22. fxe3 {[%clk 0:00:33]} 22...
fxe3 {[%clk 0:00:36]} 23. Be2 {[%clk 0:00:26]} 23... Qg2 {[%clk 0:00:22.5]} 24.
Qg4 {[%clk 0:00:15.3]} 24... Qh2 {[%clk 0:00:16]} 25. Rg1 {[%clk 0:00:13.3]}
25... Qe5 {[%clk 0:00:16]} 26. Kb1 {[%clk 0:00:09.9]} 26... a6 {[%clk
0:00:15.4]} 27. h4 {[%clk 0:00:08.4]} 27... b5 {[%clk 0:00:14.5]} 28. cxb5
{[%clk 0:00:08.3]} 28... axb5 {[%clk 0:00:15.4]} 29. Nxb5 {[%clk 0:00:08.4]}
29... Ne4 {[%clk 0:00:11.6]} 30. Bd3 {[%clk 0:00:07.1]} 30... Nf2 {[%clk
0:00:10.2]} 31. Qe2 {[%clk 0:00:06]} 31... Qxd5 {[%clk 0:00:07.6]} 32. Nc3
{[%clk 0:00:04.4]} 32... Qxd3+ {[%clk 0:00:07.5]} 33. Qxd3 {[%clk 0:00:04.1]}
33... Nxd3 {[%clk 0:00:08.4]} 34. Rd1 {[%clk 0:00:03.6]} 34... Ne5 {[%clk
0:00:06]} 35. Kc2 {[%clk 0:00:03.8]} 35... Rf2+ {[%clk 0:00:05]} 36. Kb3 {[%clk
0:00:03.4]} 36... Kg7 {[%clk 0:00:03.3]} 37. Re1 {[%clk 0:00:03.9]} 37... Ng4
{[%clk 0:00:01.8]} 38. Nd5 {[%clk 0:00:03.5]} 1-0